bitfinex/quotes_BTCUSD_20250127
["timestamp","ask_amount","ask_price","bid_price","bid_amount"]
[1737986270716,0.04634888,100650.0,100630.0,0.56643418]
[1737986270865,0.47239688,100650.0,100640.0,0.003]
[1737986271069,0.27368788,100650.0,100640.0,0.152046]
[1737986271293,0.27368788,100650.0,100640.0,0.160046]
[1737986271591,0.12464888,100650.0,100640.0,0.157046]
[1737986272054,0.12464888,100650.0,100640.0,0.149046]
[1737986273222,0.149046,100640.0,100630.0,0.20073]
[1737986273399,0.67112888,100650.0,100630.0,0.349783]
[1737986273608,0.67312888,100650.0,100630.0,0.54853]
[1737986273925,0.67312688,100650.0,100630.0,0.548521]
[1737986274255,0.67112688,100650.0,100630.0,0.546522]
[1737986274467,0.86984788,100650.0,100630.0,0.546522]
[1737986274649,0.14906,100630.0,100620.0,0.347812]
[1737986274856,0.348784,100640.0,100620.0,0.546571]
[1737986275167,0.546526,100640.0,100620.0,0.347814]
[1737986275311,0.347784,100640.0,100620.0,0.54658]
[1737986275850,0.347784,100640.0,100630.0,0.14906]
[1737986276049,0.347784,100640.0,100620.0,0.200748]
[1737986276297,0.27396,100630.0,100620.0,0.002]
[1737986277094,0.27396,100630.0,100620.0,0.151075]
[1737986277351,0.27396,100630.0,100620.0,0.149075]
[1737986277816,0.27496,100630.0,100620.0,0.149075]
[1737986278063,0.1259,100630.0,100620.0,0.149075]
[1737986278304,0.27396,100630.0,100620.0,0.149075]
[1737986278567,0.1319,100630.0,100620.0,0.150075]
[1737986278797,0.0587,100630.0,100620.0,0.24742229]
[1737986279115,0.0517,100630.0,100620.0,0.24642229]
[1737986280592,0.0557,100630.0,100620.0,0.24642229]
[1737986280725,0.0527,100630.0,100620.0,0.24642229]
[1737986281332,0.0547,100630.0,100620.0,0.24642229]
[1737986281962,0.006,100630.0,100620.0,0.41728472]
[1737986282166,0.006,100630.0,100620.0,0.56728472]
[1737986282368,0.006,100630.0,100620.0,0.59028472]
[1737986282742,0.006,100630.0,100620.0,0.56728472]
[1737986283786,0.004,100630.0,100620.0,0.56728472]
[1737986284159,0.59192124,100650.0,100630.0,0.347786]
[1737986284368,0.59192124,100650.0,100630.0,0.64387229]
[1737986284776,0.59192124,100650.0,100630.0,0.64387129]
[1737986285150,0.59192124,100650.0,100630.0,0.29608429]
[1737986285365,0.59192124,100650.0,100630.0,0.64387429]
[1737986285564,0.59292124,100650.0,100630.0,0.64387429]
[1737986286442,0.08084204,100640.0,100620.0,0.01942745]
[1737986286647,0.34907319,100630.0,100620.0,0.149075]
[1737986286870,0.149074,100630.0,100620.0,0.149075]
[1737986287090,0.824888,100640.0,100620.0,0.347837]
[1737986287260,0.626141,100640.0,100620.0,0.347837]
[1737986287463,0.14906,100630.0,100620.0,0.149075]
[1737986287661,0.626141,100640.0,100620.0,0.149075]
[1737986287869,0.14906,100630.0,100620.0,0.151075]
[1737986288065,0.14906,100630.0,100620.0,0.149075]
[1737986288275,0.14906,100630.0,100620.0,0.1492165]
[1737986289079,0.825878,100640.0,100620.0,0.3479735]
[1737986289280,0.001,100630.0,100620.0,0.1492165]
[1737986289684,0.00044624,100650.0,100640.0,0.149046]
[1737986289905,0.04869694,100670.0,100640.0,0.56725572]
[1737986290094,0.04919302,100670.0,100660.0,0.31987843]
[1737986290340,0.04919302,100670.0,100660.0,0.24636329]
[1737986291607,0.00179302,100670.0,100660.0,0.56722572]
[1737986291811,0.00179302,100670.0,100660.0,0.39636329]
[1737986292065,0.00179302,100670.0,100650.0,0.745096]
[1737986292212,0.42692061,100670.0,100650.0,0.347708]
[1737986292416,0.195616,100660.0,100650.0,0.198691]
[1737986292652,0.0466,100660.0,100650.0,0.198691]
[1737986292805,0.195616,100660.0,100650.0,0.198691]
[1737986293005,0.0466,100660.0,100650.0,0.198691]
[1737986293461,0.195616,100660.0,100650.0,0.198691]
[1737986293825,0.0466,100660.0,100650.0,0.198691]
[1737986294402,0.0466,100660.0,100650.0,0.29903829]
[1737986294603,0.00079302,100670.0,100660.0,0.149016]
[1737986294849,0.00079302,100670.0,100660.0,0.24636329]
[1737986295428,0.14979402,100670.0,100660.0,0.149016]
[1737986295977,0.00479302,100670.0,100650.0,0.198691]
[1737986296194,0.35248102,100670.0,100650.0,0.64375529]
[1737986296397,0.55116302,100670.0,100650.0,0.64375529]
[1737986296861,0.149016,100660.0,100650.0,0.149031]
[1737986298290,0.18005076,100660.0,100650.0,0.149031]
[1737986298623,0.149016,100660.0,100650.0,0.149031]
[1737986298885,0.150016,100660.0,100650.0,0.149031]
[1737986300235,0.001,100660.0,100650.0,0.149031]
[1737986300463,0.150016,100660.0,100650.0,0.149031]
[1737986300862,0.150016,100660.0,100650.0,0.14932815]
[1737986302548,0.18105076,100660.0,100650.0,0.14932815]
[1737986302912,0.18105076,100660.0,100650.0,0.00029715]
[1737986303156,0.25805076,100660.0,100650.0,0.00029715]
[1737986304225,0.150016,100660.0,100650.0,0.14932815]
[1737986304448,0.001,100660.0,100650.0,0.24667544]
[1737986304801,0.001,100660.0,100650.0,0.41753787]
[1737986305074,0.001,100660.0,100650.0,0.56753787]
[1737986306162,0.00079302,100670.0,100660.0,0.15]
[1737986306407,0.00079302,100670.0,100660.0,0.56722572]
[1737986306735,0.00079302,100670.0,100660.0,0.39636329]
[1737986307229,0.00079302,100670.0,100660.0,0.24636329]
[1737986307402,0.13303479,100670.0,100650.0,0.15732715]
[1737986307616,0.149016,100660.0,100650.0,0.00829715]
[1737986307830,0.72784502,100670.0,100650.0,0.25267544]
[1737986308027,0.67817302,100670.0,100650.0,0.45137744]
[1737986308226,0.149016,100660.0,100650.0,0.25467544]
[1737986308427,0.149016,100660.0,100650.0,0.00829715]
[1737986308732,0.149016,100660.0,100650.0,0.15532815]
[1737986308929,0.149016,100660.0,100650.0,0.14932815]
[1737986309129,0.149016,100660.0,100650.0,0.00029715]
[1737986309270,0.17915273,100660.0,100650.0,0.14932815]
[1737986310575,0.67817002,100670.0,100650.0,0.14932815]
[1737986310921,0.149016,100660.0,100650.0,0.14932815]
[1737986311139,0.1502579,100660.0,100650.0,0.00029715]
[1737986311372,0.59846762,100660.0,100650.0,0.00029715]
[1737986311555,0.64362456,100660.0,100650.0,0.00029715]
[1737986311942,0.79612456,100660.0,100650.0,0.00029715]
[1737986312645,0.79912456,100660.0,100650.0,0.00029715]
[1737986313224,0.79612456,100660.0,100650.0,0.00029715]
[1737986314115,0.80512456,100660.0,100650.0,0.00129715]
[1737986314809,0.80912456,100660.0,100650.0,0.00129715]
[1737986315013,0.76054272,100660.0,100650.0,0.00129715]
[1737986315222,0.59968029,100660.0,100650.0,0.00129715]
[1737986315632,0.77054272,100660.0,100650.0,0.00129715]
[1737986315833,0.79054272,100660.0,100650.0,0.00129715]
[1737986316014,0.81912456,100660.0,100650.0,0.00129715]
[1737986316939,0.78912456,100660.0,100650.0,0.00129715]
[1737986317145,0.78879476,100660.0,100650.0,0.00129715]
[1737986317348,0.76879476,100660.0,100650.0,0.00129715]
[1737986317749,0.78879476,100660.0,100650.0,0.00129715]
[1737986318250,0.76879476,100660.0,100650.0,0.00129715]
[1737986318453,0.358216,100660.0,100650.0,0.00129715]
[1737986318790,0.55951655,100660.0,100650.0,0.00129715]
[1737986319018,0.58357892,100660.0,100650.0,0.00129715]
[1737986319147,0.56357892,100660.0,100650.0,0.00129715]
[1737986319561,0.58357892,100660.0,100650.0,0.00129715]
[1737986319957,0.56357892,100660.0,100650.0,0.00129715]
[1737986320312,0.36865412,100660.0,100650.0,0.00129715]
[1737986320875,0.39192389,100660.0,100650.0,0.00129715]
[1737986321077,0.68313361,100660.0,100650.0,0.00129715]
[1737986321285,0.69313361,100660.0,100650.0,0.00129715]
[1737986322850,0.72251603,100660.0,100650.0,0.00129715]
[1737986324967,0.74251603,100660.0,100650.0,0.00129715]
[1737986325510,0.74281318,100660.0,100650.0,0.00129715]
[1737986325828,0.73281318,100660.0,100650.0,0.00129715]
[1737986326031,0.70954341,100660.0,100650.0,0.00129715]
[1737986326256,0.71954341,100660.0,100650.0,0.00129715]
[1737986326459,0.74280821,100660.0,100650.0,0.00129715]
[1737986326635,0.36895127,100660.0,100650.0,0.00129715]
[1737986326858,0.20851315,100660.0,100650.0,0.15032815]
[1737986327203,0.16231315,100660.0,100650.0,0.00129715]
[1737986327547,0.3344176,100660.0,100650.0,0.00129715]
[1737986327746,0.50644038,100660.0,100650.0,0.00129715]
[1737986328565,0.61352287,100660.0,100650.0,0.00129715]
[1737986328965,0.65678767,100660.0,100650.0,0.00129715]
[1737986330018,0.64678767,100660.0,100650.0,0.00129715]
[1737986330219,0.33231315,100660.0,100650.0,0.00129715]
[1737986330421,0.35557795,100660.0,100650.0,0.00129715]
[1737986330643,0.33557795,100660.0,100650.0,0.00129715]
[1737986331016,0.31231315,100660.0,100650.0,0.00129715]
[1737986331731,0.31222832,100660.0,100650.0,0.00129715]
[1737986332127,0.16222832,100660.0,100650.0,0.00129715]
[1737986334327,0.16222832,100660.0,100650.0,0.15032815]
[1737986334459,0.16222832,100660.0,100650.0,0.00129715]
[1737986334460,0.82790441,100660.0,100650.0,0.00129715]
[1737986334662,0.8412965,100660.0,100650.0,0.00129715]
[1737986334883,0.67558168,100660.0,100650.0,0.00129715]
[1737986335038,0.20902832,100660.0,100650.0,0.15032815]
[1737986335242,0.16222832,100660.0,100650.0,0.15032815]
[1737986335444,0.01329715,100660.0,100650.0,0.15032815]
[1737986336143,0.00929715,100660.0,100650.0,0.15032815]
[1737986336313,0.15831315,100660.0,100650.0,0.15032815]
[1737986336512,0.00929715,100660.0,100650.0,0.15032815]
[1737986336784,0.16131315,100660.0,100650.0,0.15032815]
[1737986336962,0.01229715,100660.0,100650.0,0.15032815]
[1737986337561,0.00329715,100660.0,100650.0,0.24667544]
[1737986337950,0.01029715,100660.0,100650.0,0.24767544]
[1737986338728,0.00029715,100660.0,100650.0,0.24667544]
[1737986338948,0.00429715,100660.0,100650.0,0.24667544]
[1737986339124,0.00629715,100660.0,100650.0,0.24667544]
[1737986339313,0.00629715,100660.0,100650.0,0.39667544]
[1737986339530,0.00629715,100660.0,100650.0,0.58608151]
[1737986339720,0.00429715,100660.0,100650.0,0.58608151]
[1737986340228,0.00629715,100660.0,100650.0,0.58608151]
[1737986340559,0.00429715,100660.0,100650.0,0.47227544]
[1737986340959,0.00429715,100660.0,100650.0,0.00029715]
[1737986340960,0.26711922,100660.0,100650.0,0.00029715]
[1737986341368,0.41311922,100660.0,100650.0,0.00029715]
[1737986341824,0.30031315,100660.0,100650.0,0.00029715]
[1737986342104,0.41411922,100660.0,100650.0,0.00229715]
[1737986342304,0.29931315,100660.0,100650.0,0.00229715]
[1737986342526,0.41311922,100660.0,100650.0,0.00229715]
[1737986342749,0.54746651,100660.0,100650.0,0.00029715]
[1737986342958,0.76234792,100660.0,100650.0,0.00029715]
[1737986343129,0.83512516,100660.0,100650.0,0.00029715]
[1737986343335,0.72131909,100660.0,100650.0,0.00029715]
[1737986343544,0.72331909,100660.0,100650.0,0.00029715]
[1737986343950,0.72131909,100660.0,100650.0,0.00029715]
[1737986344536,0.347816,100630.0,100610.0,0.54237765]
[1737986344732,0.546576,100630.0,100610.0,0.54237765]
[1737986344933,0.745337,100630.0,100610.0,0.54237765]
[1737986345517,0.39751,100630.0,100610.0,0.347858]
[1737986345724,0.546581,100630.0,100610.0,0.34800688]
[1737986345982,0.546581,100630.0,100610.0,0.54679388]
[1737986347408,0.149071,100630.0,100620.0,0.149075]
[1737986348800,0.151071,100630.0,100620.0,0.149075]
[1737986350202,0.005,100630.0,100620.0,0.149075]
[1737986350823,0.15406,100630.0,100620.0,0.149075]
[1737986351021,0.15406,100630.0,100620.0,0.1492165]
[1737986351314,0.15406,100630.0,100620.0,0.0001415]
[1737986351849,0.15406,100630.0,100620.0,0.1492165]
[1737986352072,0.66745568,100630.0,100620.0,0.0001415]
[1737986352293,0.70379901,100630.0,100620.0,0.0001415]
[1737986352511,0.83663119,100630.0,100620.0,0.0001415]
[1737986352730,0.84663119,100630.0,100620.0,0.0001415]
[1737986352936,0.0509,100630.0,100620.0,0.1492165]
[1737986353136,0.003,100630.0,100620.0,0.1492165]
[1737986353570,0.15206,100630.0,100620.0,0.1492165]
[1737986354174,0.01,100630.0,100620.0,0.1502165]
[1737986355023,0.15906,100630.0,100620.0,0.1502165]
[1737986355227,0.40400831,100630.0,100620.0,0.0011415]
[1737986355350,0.20846,100630.0,100620.0,0.0011415]
[1737986355777,0.20846,100630.0,100620.0,0.1502165]
[1737986355998,0.15906,100630.0,100620.0,0.1502165]
[1737986356172,0.15906,100630.0,100620.0,0.0011415]
[1737986356841,0.2939406,100630.0,100620.0,0.0011415]
[1737986356994,0.29269825,100630.0,100620.0,0.0011415]
[1737986359502,0.41304554,100630.0,100620.0,0.0011415]
[1737986359687,0.44022252,100630.0,100620.0,0.0011415]
[1737986361728,0.32641645,100630.0,100620.0,0.0011415]
[1737986362124,0.44022252,100630.0,100620.0,0.0011415]
[1737986362971,0.45033255,100630.0,100620.0,0.0011415]
[1737986363204,0.45062991,100630.0,100620.0,0.0011415]
[1737986364699,0.03012954,100630.0,100620.0,0.1502165]
[1737986365027,0.01029736,100630.0,100620.0,0.1502165]
[1737986365166,0.15935736,100630.0,100620.0,0.1502165]
[1737986365778,0.15935736,100630.0,100620.0,0.0011415]
[1737986366393,0.27440579,100630.0,100620.0,0.0011415]
[1737986366559,0.39351072,100630.0,100620.0,0.0011415]
[1737986366759,0.4133429,100630.0,100620.0,0.0011415]
[1737986368673,0.44051988,100630.0,100620.0,0.0011415]
[1737986370531,0.15935736,100630.0,100620.0,0.0011415]
[1737986370820,0.15935736,100630.0,100620.0,0.1502165]
[1737986371068,0.01029736,100630.0,100620.0,0.1502165]
[1737986372662,0.01029736,100630.0,100620.0,0.47986379]
[1737986372895,0.01029736,100630.0,100620.0,0.59366986]
[1737986373132,0.01029736,100630.0,100620.0,0.47986379]
[1737986373440,0.15935736,100630.0,100620.0,0.0011415]
[1737986373648,0.27140582,100630.0,100620.0,0.0011415]
[1737986373864,0.00729736,100630.0,100620.0,0.1502165]
[1737986374417,0.15635736,100630.0,100620.0,0.1502165]
[1737986374649,0.00729736,100630.0,100620.0,0.1502165]
[1737986374846,0.00029736,100630.0,100620.0,0.1492165]
[1737986375063,0.14935736,100630.0,100620.0,0.1492165]
[1737986375833,0.14935736,100630.0,100620.0,0.1512165]
[1737986376232,0.15035736,100630.0,100620.0,0.1582165]
[1737986376412,0.15035736,100630.0,100620.0,0.1562165]
[1737986376615,0.15035736,100630.0,100620.0,0.0071415]
[1737986376849,0.15359974,100630.0,100620.0,0.1562165]
[1737986377010,0.15235736,100630.0,100620.0,0.1562165]
[1737986377339,0.00329736,100630.0,100620.0,0.1562165]
[1737986377707,0.00229736,100630.0,100620.0,0.1492165]
[1737986378463,0.00529736,100630.0,100620.0,0.1492165]
[1737986379232,0.15435736,100630.0,100620.0,0.1492165]
[1737986380760,0.27594696,100630.0,100620.0,0.0001415]
[1737986380981,0.29453942,100630.0,100620.0,0.0001415]
[1737986381184,0.55851072,100630.0,100620.0,0.0001415]
[1737986381393,0.66744549,100630.0,100620.0,0.0001415]
[1737986381601,0.69253247,100630.0,100620.0,0.0001415]
[1737986381807,0.74093247,100630.0,100620.0,0.0001415]
[1737986382010,1.02943854,100630.0,100620.0,0.0001415]
[1737986382209,0.52718714,100620.0,100610.0,0.00029048]
[1737986382539,0.76945618,100620.0,100610.0,0.00029048]
[1737986382963,0.65565011,100620.0,100610.0,0.00029048]
[1737986383141,0.52072836,100620.0,100610.0,0.00029048]
[1737986383276,0.54056313,100620.0,100610.0,0.00029048]
[1737986383891,0.54956313,100620.0,100610.0,0.00129048]
[1737986384095,0.92331063,100620.0,100610.0,0.00129048]
[1737986384297,0.98035792,100620.0,100610.0,0.00129048]
[1737986384531,0.92065792,100620.0,100610.0,0.00129048]
[1737986384732,1.02065792,100620.0,100610.0,0.00129048]
[1737986385004,0.93231063,100620.0,100610.0,0.00229048]
[1737986385133,0.68872836,100620.0,100610.0,0.00229048]
[1737986385333,0.67972836,100620.0,100610.0,0.00129048]
[1737986385915,0.67972836,100620.0,100610.0,0.00229048]
[1737986385916,0.70472836,100620.0,100610.0,0.00229048]
[1737986386335,0.69472836,100620.0,100610.0,0.00229048]
[1737986386568,0.49672836,100620.0,100610.0,0.00129048]
[1737986386769,0.38292229,100620.0,100610.0,0.00129048]
[1737986386888,0.56492229,100620.0,100610.0,0.00229048]
[1737986387313,0.48582229,100620.0,100610.0,0.00229048]
[1737986387533,0.365475,100620.0,100610.0,0.00229048]
[1737986387735,0.167075,100620.0,100610.0,0.15138048]
[1737986388011,0.28212351,100620.0,100610.0,0.00229048]
[1737986388363,0.43088107,100620.0,100610.0,0.00229048]
[1737986388741,0.41288107,100620.0,100610.0,0.00029048]
[1737986389105,0.62972836,100620.0,100610.0,0.00229048]
[1737986389500,0.90722184,100620.0,100610.0,0.00129048]
[1737986389715,0.89222184,100620.0,100610.0,0.00029048]
[1737986389924,0.89222184,100620.0,100600.0,0.00200982]
[1737986389925,0.42209,100610.0,100600.0,0.00200982]
[1737986390100,0.87284943,100610.0,100600.0,0.00171934]
[1737986390300,0.93764596,100610.0,100600.0,0.00171934]
[1737986390605,0.93764596,100610.0,100580.0,0.00021135]
[1737986390606,0.57973214,100590.0,100580.0,0.00021135]
[1737986390804,0.70910175,100590.0,100580.0,0.00036026]
[1737986391051,0.73495576,100590.0,100580.0,0.00036026]
[1737986391486,0.62114969,100590.0,100580.0,0.00036026]
[1737986391657,0.63057934,100590.0,100580.0,0.00036026]
[1737986392937,0.64357934,100590.0,100580.0,0.00136026]
[1737986393347,0.75738541,100590.0,100580.0,0.00136026]
[1737986393571,0.95215576,100590.0,100580.0,0.00136026]
[1737986394360,0.85215576,100590.0,100580.0,0.00136026]
[1737986394560,0.85215576,100590.0,100580.0,2.6e-07]
[1737986395011,2.02795576,100590.0,100580.0,2.6e-07]
[1737986395325,2.34348789,100590.0,100580.0,2.6e-07]
[1737986395544,2.45388739,100590.0,100580.0,2.6e-07]
[1737986395743,0.322149,100570.0,100560.0,0.0001414]
[1737986395940,0.61442788,100570.0,100560.0,0.0001414]
[1737986396143,0.68979951,100570.0,100560.0,0.0001414]
[1737986396352,0.71442788,100570.0,100560.0,0.0001414]
[1737986396760,0.69442788,100570.0,100560.0,0.0001414]
[1737986397294,0.61399823,100570.0,100560.0,0.0001414]
[1737986397498,0.42849629,100570.0,100560.0,0.0001414]
[1737986397697,0.27849629,100570.0,100560.0,0.0001414]
[1737986398357,0.158149,100570.0,100560.0,0.0001414]
[1737986398764,0.163149,100570.0,100560.0,0.1493054]
[1737986399296,0.163149,100570.0,100560.0,0.0001414]
[1737986399494,0.158149,100570.0,100560.0,0.0001414]
[1737986399646,0.151149,100570.0,100560.0,0.0001414]
[1737986399847,0.153149,100570.0,100560.0,0.0001414]
[1737986400295,0.149149,100570.0,100560.0,0.0001414]
[1737986400539,0.152149,100570.0,100560.0,0.0001414]
[1737986400747,0.54797515,100570.0,100560.0,0.0001414]
[1737986400964,0.67579951,100570.0,100560.0,0.0001414]
[1737986401667,0.303149,100570.0,100560.0,0.0001414]
[1737986402243,0.53330236,100570.0,100560.0,0.0001414]
[1737986402495,0.58976317,100570.0,100560.0,0.0001414]
[1737986402673,0.68976317,100570.0,100560.0,0.0001414]
[1737986402906,0.69776317,100570.0,100560.0,0.0001414]
[1737986403328,0.72049684,100570.0,100560.0,0.0001414]
[1737986403457,0.82829684,100570.0,100560.0,0.0001414]
[1737986403670,0.92537723,100570.0,100560.0,0.0001414]
[1737986404545,0.98507723,100570.0,100560.0,0.0001414]
[1737986404750,0.47529258,100560.0,100550.0,4e-07]
[1737986404981,0.79996921,100560.0,100550.0,0.00014934]
[1737986405180,1.29476921,100560.0,100550.0,3.4e-07]
[1737986405391,0.422179,100550.0,100540.0,0.0001414]
[1737986405597,0.68617812,100550.0,100540.0,0.0001414]
[1737986406295,0.92218419,100550.0,100540.0,4e-07]
[1737986406678,0.149224,100520.0,100510.0,0.0001415]
[1737986406919,0.64405101,100520.0,100510.0,0.0001415]
[1737986407053,0.74247445,100520.0,100510.0,0.0001415]
[1737986407475,0.76247445,100520.0,100510.0,0.0001415]
[1737986407933,0.55854721,100520.0,100510.0,0.00063847]
[1737986408287,0.53337736,100520.0,100510.0,0.00063847]
[1737986408464,0.41957129,100520.0,100510.0,0.00063847]
[1737986408702,0.61552449,100520.0,100510.0,0.00063847]
[1737986408907,0.32396067,100520.0,100510.0,0.00063847]
[1737986409149,0.397874,100540.0,100520.0,0.149224]
[1737986409436,0.348107,100550.0,100530.0,0.348147]
[1737986409642,0.547023,100550.0,100530.0,0.547083]
[1737986409841,0.348107,100550.0,100540.0,0.149194]
[1737986410046,0.547023,100550.0,100530.0,0.547083]
[1737986410425,0.348135,100540.0,100520.0,0.348168]
[1737986410617,0.149224,100520.0,100510.0,0.27591347]
[1737986410828,0.41778782,100520.0,100510.0,0.00063847]
[1737986411030,0.44078782,100520.0,100510.0,0.00063847]
[1737986411255,0.60021747,100520.0,100510.0,0.00063847]
[1737986411457,0.60021747,100520.0,100500.0,0.0101416]
[1737986411458,0.00936153,100510.0,100500.0,0.0101416]
[1737986411657,0.65006987,100510.0,100500.0,0.01029066]
[1737986411858,0.47885334,100510.0,100500.0,0.01029066]
[1737986412261,0.76741716,100510.0,100500.0,0.01029066]
[1737986412463,0.74796987,100510.0,100500.0,0.01029066]
[1737986412664,0.42894682,100510.0,100500.0,0.01029066]
[1737986413091,0.65917198,100510.0,100500.0,0.01029066]
[1737986413305,0.64974233,100510.0,100500.0,0.01029066]
[1737986414243,0.46122272,100510.0,100500.0,0.01029066]
[1737986414417,0.46322272,100510.0,100500.0,0.01029066]
[1737986414622,0.46709747,100510.0,100500.0,0.01029066]
[1737986415049,0.50986217,100510.0,100500.0,0.01029066]
[1737986415254,0.6810787,100510.0,100500.0,0.01029066]
[1737986415599,0.6610787,100510.0,100500.0,0.01029066]
[1737986415801,0.34264013,100510.0,100500.0,0.01029066]
[1737986416187,0.34850096,100510.0,100500.0,0.01029066]
[1737986416625,0.01712623,100510.0,100500.0,0.15954366]
[1737986416957,0.26495533,100510.0,100500.0,0.01029066]
[1737986417162,0.31884825,100510.0,100500.0,0.01029066]
[1737986418324,0.34883633,100510.0,100500.0,0.01029066]
[1737986418532,0.01712623,100510.0,100500.0,0.24211401]
[1737986418763,0.01712623,100510.0,100500.0,0.51067783]
[1737986419107,0.01487604,100510.0,100500.0,0.68367783]
[1737986419305,0.71855,100570.0,100500.0,0.68367783]
[1737986419306,0.348027,100570.0,100550.0,0.348064]
[1737986419480,0.149171,100560.0,100540.0,0.348095]
[1737986419731,0.34931016,100560.0,100540.0,0.348095]
[1737986419935,0.348041,100570.0,100560.0,0.149164]
[1737986420149,0.348062,100560.0,100540.0,0.348109]
[1737986420358,0.348089,100550.0,100530.0,0.629073]
[1737986420564,0.34933733,100550.0,100530.0,0.547061]
[1737986420770,0.54826633,100550.0,100530.0,0.348127]
[1737986420975,0.54826433,100550.0,100530.0,0.19893]
[1737986421189,0.34934733,100550.0,100540.0,0.001]
[1737986421397,0.348104,100550.0,100540.0,0.001]
[1737986421600,0.348136,100540.0,100520.0,0.36759742]
[1737986421838,0.54714602,100540.0,100520.0,0.56655142]
[1737986422004,0.34821202,100540.0,100530.0,0.001]
[1737986422206,0.34821202,100540.0,100530.0,0.150209]
[1737986422417,0.34821202,100540.0,100530.0,0.001]
[1737986422614,0.14928102,100540.0,100530.0,0.001]
[1737986422762,0.149205,100540.0,100530.0,0.00092398]
[1737986422963,0.149205,100540.0,100530.0,0.00292398]
[1737986423162,0.149157,100540.0,100530.0,0.15213298]
[1737986423443,0.149157,100540.0,100530.0,0.00292398]
[1737986423630,0.299157,100540.0,100530.0,0.00092398]
[1737986423849,0.299157,100540.0,100520.0,0.36760242]
[1737986424075,0.498122,100540.0,100530.0,0.002]
[1737986425492,0.498122,100540.0,100530.0,0.003]
[1737986425907,0.498122,100540.0,100530.0,0.001]
[1737986426111,0.348098,100550.0,100530.0,0.34972435]
[1737986426327,0.00124339,100540.0,100530.0,0.150209]
[1737986426522,0.15043739,100540.0,100530.0,0.001]
[1737986427160,0.59200121,100540.0,100530.0,0.002]
[1737986427364,0.62018747,100540.0,100530.0,0.002]
[1737986427612,0.81328291,100540.0,100530.0,0.002]
[1737986427754,0.85838291,100540.0,100530.0,0.002]
[1737986428301,0.88606433,100540.0,100530.0,0.002]
[1737986428594,0.88606433,100540.0,100530.0,0.001]
[1737986428961,0.89506433,100540.0,100530.0,0.002]
[1737986429175,0.75795326,100540.0,100530.0,0.001]
[1737986429367,0.85795326,100540.0,100530.0,0.001]
[1737986429572,0.89806433,100540.0,100530.0,0.001]
[1737986429778,0.76095326,100540.0,100530.0,0.001]
[1737986430001,0.88863468,100540.0,100530.0,0.001]
[1737986430214,0.89570132,100540.0,100530.0,0.001]
[1737986430620,0.299238,100510.0,100500.0,0.0101416]
[1737986430817,0.86669726,100510.0,100500.0,0.0101416]
[1737986431016,0.90380833,100510.0,100500.0,0.0101416]
[1737986431745,0.73680182,100510.0,100500.0,0.0101416]
[1737986431974,0.68729726,100510.0,100500.0,0.01029066]
[1737986432177,0.41958529,100510.0,100500.0,0.01029066]
[1737986432322,0.42158529,100510.0,100500.0,0.01029066]
[1737986432646,0.41958529,100510.0,100500.0,0.01029066]
[1737986432849,0.299238,100510.0,100500.0,0.01029066]
[1737986433262,0.299238,100510.0,100500.0,0.15954366]
[1737986433434,0.746145,100520.0,100500.0,0.35854666]
[1737986433636,0.149238,100510.0,100500.0,0.35854666]
[1737986433839,0.348203,100520.0,100500.0,0.35853666]
[1737986434079,0.001,100510.0,100500.0,0.35853666]
[1737986434290,0.150238,100510.0,100500.0,0.15954366]
[1737986434476,0.149238,100510.0,100500.0,0.01029066]
[1737986434691,0.32045453,100510.0,100500.0,0.01029066]
[1737986434809,0.154238,100510.0,100500.0,0.01029066]
[1737986435215,0.149238,100510.0,100500.0,0.01029066]
[1737986435628,0.15048189,100510.0,100500.0,0.01029066]
[1737986436086,0.149238,100510.0,100500.0,0.01029066]
[1737986437083,0.150238,100510.0,100500.0,0.01029066]
[1737986437897,0.154238,100510.0,100500.0,0.01029066]
[1737986438303,0.15548188,100510.0,100500.0,0.01029066]
[1737986438504,0.27458529,100510.0,100500.0,0.01029066]
[1737986439333,0.27258529,100510.0,100500.0,0.01029066]
[1737986439531,0.59380182,100510.0,100500.0,0.01029066]
[1737986440471,0.62432944,100510.0,100500.0,0.01029066]
[1737986440700,0.64432944,100510.0,100500.0,0.01029066]
[1737986441034,0.75375909,100510.0,100500.0,0.01029066]
[1737986441325,0.74432944,100510.0,100500.0,0.01029066]
[1737986441544,0.82167673,100510.0,100500.0,0.01029066]
[1737986441719,0.419683,100480.0,100470.0,0.0001413]
[1737986441972,0.87721938,100480.0,100470.0,0.0001413]
[1737986442201,0.73653047,100480.0,100470.0,0.0001413]
[1737986442705,0.77230082,100480.0,100470.0,0.0001413]
[1737986443359,0.80173047,100480.0,100470.0,0.0001413]
[1737986443494,0.46483029,100480.0,100470.0,0.0001413]
[1737986443704,0.299283,100480.0,100470.0,0.1494393]
[1737986443939,0.149283,100480.0,100470.0,0.1494393]
[1737986444150,0.299283,100480.0,100470.0,0.0001413]
[1737986444708,0.302283,100480.0,100470.0,0.0001413]
[1737986445040,0.310283,100480.0,100470.0,0.1494393]
[1737986445270,0.008,100480.0,100470.0,0.15000965]
[1737986445471,0.149275,100490.0,100470.0,0.15000965]
[1737986445671,0.149275,100490.0,100480.0,0.00057035]
[1737986446042,0.299283,100480.0,100470.0,0.0001413]
[1737986446399,0.59484682,100480.0,100470.0,0.0001413]
[1737986449187,0.42063029,100480.0,100470.0,0.0001413]
[1737986449393,0.59184682,100480.0,100470.0,0.0001413]
[1737986449590,0.42063029,100480.0,100470.0,0.0001413]
[1737986449886,0.005,100480.0,100470.0,0.1494393]
[1737986450244,0.154283,100480.0,100470.0,0.1494393]
[1737986450868,0.154283,100480.0,100470.0,0.0001413]
[1737986451155,0.15552726,100480.0,100470.0,0.0001413]
[1737986451359,0.15552726,100480.0,100470.0,0.1494393]
[1737986451591,0.005,100480.0,100470.0,0.15000965]
[1737986451811,0.005,100480.0,100470.0,0.32465694]
[1737986452039,0.15552706,100480.0,100470.0,0.1494393]
[1737986452254,0.15453179,100480.0,100470.0,0.0001413]
[1737986452464,0.15453199,100480.0,100470.0,0.0001413]
[1737986452668,0.15328773,100480.0,100470.0,0.0001413]
[1737986452871,0.15453199,100480.0,100470.0,0.0001413]
[1737986453077,0.00400473,100480.0,100470.0,0.1494393]
[1737986453295,0.00400473,100480.0,100470.0,0.15000965]
[1737986453712,0.00400473,100480.0,100470.0,0.24735694]
[1737986453920,0.57185155,100480.0,100470.0,0.0001413]
[1737986454164,0.83837764,100480.0,100470.0,0.0001413]
[1737986454374,0.91386808,100480.0,100470.0,0.0001413]
[1737986454589,1.15826808,100480.0,100470.0,0.0001413]
[1737986454793,1.16769773,100480.0,100470.0,0.0001413]
[1737986454994,1.05826808,100480.0,100470.0,0.0001413]
[1737986455198,1.107993,100480.0,100470.0,0.0001413]